bitfinex-derivatives/quotes_SOLF0:USTF0_20250720
["timestamp","ask_amount","ask_price","bid_price","bid_amount"]
[1752980023914,3.0,177.76,177.75,3.22]
[1752980025709,8.6225,177.76,177.75,3.22]
[1752980026319,3.0,177.76,177.75,3.22]
[1752980027815,8.6225,177.76,177.75,3.22]
[1752980028118,8.6225,177.76,177.74,102.88]
[1752980028317,3.0,177.75,177.74,106.1]
[1752980028521,8.6228,177.75,177.74,106.1]
[1752980029327,3.0,177.75,177.74,106.1]
[1752980032420,8.6228,177.75,177.74,106.1]
[1752980033114,8.6228,177.75,177.74,102.88]
[1752980034120,3.09,177.72,177.71,105.91]
[1752980035116,3.09,177.71,177.64,3.03]
[1752980035316,3.09,177.71,177.66,3.03]
[1752980035717,3.09,177.7,177.68,3.03]
[1752980036024,3.09,177.7,177.64,3.03]
[1752980036221,3.09,177.7,177.63,1.87641486]
[1752980036222,3.09,177.69,177.68,3.03]
[1752980036721,3.09,177.69,177.68,8.655]
[1752980037122,3.09,177.69,177.68,3.03]
[1752980037419,3.09,177.69,177.66,3.03]
[1752980037619,3.09,177.67,177.64,3.03]
[1752980037921,3.09,177.65,177.63,3.03]
[1752980038227,3.09,177.65,177.61,105.93]
[1752980038723,3.09,177.63,177.61,105.93]
[1752980039424,5.626,177.65,177.61,111.5571]
[1752980039626,3.09,177.62,177.61,111.5571]
[1752980040925,3.09,177.63,177.62,3.03]
[1752980042726,3.09,177.63,177.62,8.6569]
[1752980042935,0.97982628,177.72,177.63,3.03]
[1752980042936,1.87641486,177.68,177.63,3.03]
[1752980043127,3.09,177.66,177.63,3.03]
[1752980043523,3.09,177.65,177.64,5.6261]
[1752980043826,3.09,177.65,177.64,8.6561]
[1752980044025,3.09,177.65,177.64,3.03]
[1752980044729,3.09,177.65,177.62,3.03]
[1752980045126,8.716,177.65,177.62,3.03]
[1752980045326,3.09,177.64,177.62,3.03]
[1752980045729,3.09,177.63,177.55,1.87641486]
[1752980045935,3.09,177.61,177.57,3.03]
[1752980046236,3.09,177.6,177.57,3.03]
[1752980047525,3.09,177.6,177.59,3.03]
[1752980047932,3.09,177.6,177.57,5.6284]
[1752980048134,3.09,177.6,177.58,3.03]
[1752980048332,3.09,177.59,177.58,3.03]
[1752980049025,3.09,177.59,177.56,102.92]
[1752980049230,3.09,177.59,177.57,3.03]
[1752980049430,3.09,177.59,177.56,102.92]
[1752980049732,3.09,177.59,177.56,105.95]
[1752980050435,8.7181,177.59,177.56,105.95]
[1752980050638,3.09,177.59,177.57,3.03]
[1752980050838,3.09,177.58,177.56,102.92]
[1752980051637,3.09,177.63,177.57,3.03]
[1752980051832,3.09,177.64,177.61,3.03]
[1752980052634,3.09,177.64,177.62,5.6267]
[1752980052930,0.97982628,177.72,177.61,3.03]
[1752980052931,3.09,177.65,177.61,3.03]
[1752980053333,3.09,177.65,177.62,5.6268]
[1752980053829,3.09,177.65,177.64,3.03]
[1752980055439,3.09,177.67,177.65,3.03]
[1752980056935,3.09,177.66,177.65,3.03]
[1752980058236,5.6254,177.67,177.65,3.03]
[1752980058438,8.7154,177.67,177.65,3.03]
[1752980058739,8.7154,177.67,177.66,3.03]
[1752980059337,5.6257,177.66,177.63,5.6265]
[1752980059542,8.7157,177.66,177.65,3.03]
[1752980060642,8.7157,177.66,177.63,3.14]
[1752980060839,3.09,177.65,177.64,3.14]
[1752980062143,3.09,177.66,177.64,3.14]
[1752980062940,3.09,177.64,177.6,104.79641486]
[1752980063142,1.87641486,177.68,177.6,102.92]
[1752980063338,3.09,177.65,177.6,102.92]
[1752980063537,3.09,177.63,177.61,3.14]
[1752980064133,8.7169,177.62,177.61,3.14]
[1752980065342,8.7169,177.62,177.6,102.92]
[1752980065639,3.09,177.61,177.6,106.06]
[1752980066534,3.09,177.63,177.6,102.92]
[1752980066735,3.09,177.63,177.61,3.14]
[1752980067637,3.09,177.62,177.6,102.92]
[1752980068040,3.09,177.62,177.61,3.14]
[1752980071348,3.09,177.62,177.6,102.92]
[1752980071749,3.09,177.62,177.6,3.14]
[1752980073241,7.50291486,177.64,177.6,3.14]
[1752980073444,3.09,177.64,177.6,3.14]
[1752980074355,3.09,177.68,177.61,3.14]
[1752980074646,3.09,177.68,177.63,3.14]
[1752980075652,3.09,177.66,177.61,3.14]
[1752980075853,3.09,177.66,177.62,3.14]
[1752980076052,3.09,177.66,177.63,3.14]
[1752980076857,3.09,177.65,177.63,3.14]
[1752980077057,5.6257,177.66,177.63,3.14]
[1752980077358,3.09,177.64,177.63,3.14]
[1752980079751,3.09,177.64,177.61,3.14]
[1752980079956,3.09,177.64,177.62,3.14]
[1752980081361,1.87641486,177.65,177.62,3.14]
[1752980081666,3.09,177.63,177.62,3.14]
[1752980084563,3.09,177.63,177.61,3.14]
[1752980085271,3.09,177.62,177.6,106.8]
[1752980085468,3.09,177.62,177.6,3.14]
[1752980085961,3.09,177.61,177.58,5.6281]
[1752980086161,3.09,177.6,177.58,5.6281]
[1752980086363,3.09,177.6,177.59,3.14]
[1752980088166,3.09,177.6,177.57,106.66]
[1752980088365,3.09,177.6,177.59,3.14]
[1752980092070,3.09,177.6,177.58,3.01]
[1752980092759,8.7176,177.6,177.57,103.52]
[1752980093271,5.6279,177.59,177.55,3.01]
[1752980093573,3.04,177.58,177.55,3.01]
[1752980093768,3.04,177.57,177.55,8.6389]
[1752980094071,3.04,177.57,177.56,3.01]
[1752980095269,1.87641486,177.57,177.55,3.01]
[1752980095568,3.04,177.56,177.55,3.01]
[1752980095875,3.04,177.56,177.55,8.6391]
[1752980096175,3.04,177.56,177.55,5.6291]
[1752980096372,3.04,177.56,177.55,8.6391]
[1752980097074,3.04,177.58,177.56,3.01]
[1752980097373,3.04,177.57,177.55,5.6291]
[1752980097774,3.04,177.57,177.56,3.01]
[1752980099377,3.04,177.59,177.56,3.01]
[1752980100373,1.87641486,177.61,177.57,3.01]
[1752980100578,387.64986828,177.7,177.57,3.01]
[1752980100579,3.04,177.62,177.57,3.01]
[1752980100769,3.04,177.61,177.57,3.01]
[1752980101072,378.4,177.7,177.54,108.15359249]
[1752980101073,3.04,177.58,177.54,106.43]
[1752980101275,1.87641486,177.55,177.5,3.01]
[1752980101474,1.87641486,177.53,177.49,3.01]
[1752980101669,3.04,177.52,177.5,3.01]
[1752980101876,0.22364518,177.52,177.5,3.01]
[1752980102071,1.87641486,177.54,177.51,5.6302]
[1752980102275,6.16657885,177.62,177.48,3.01]
[1752980102580,1.87641486,177.56,177.48,3.01]
[1752980102876,105.31641486,177.66,177.5,3.01]
[1752980102877,1.87641486,177.57,177.5,3.01]
[1752980104282,3.04,177.58,177.51,1.87641486]
[1752980104481,3.04,177.58,177.56,3.01]
[1752980105069,3.04,177.58,177.57,3.01]
[1752980105270,3.04,177.58,177.55,3.01]
[1752980105471,3.04,177.58,177.49,1.87641486]
[1752980105472,3.04,177.56,177.51,3.01]
[1752980105874,1.87641486,177.55,177.52,3.01]
[1752980106075,3.04,177.54,177.52,3.01]
[1752980106377,3.04,177.53,177.52,3.01]
[1752980107980,5.6297,177.54,177.52,3.01]
[1752980108180,8.6697,177.54,177.53,3.01]
[1752980110482,4.91641486,177.56,177.53,3.01]
[1752980110776,4.91641486,177.56,177.53,8.6397]
[1752980110980,1.87641486,177.56,177.54,3.01]
[1752980111881,3.04,177.54,177.51,3.01]
[1752980112382,3.04,177.54,177.52,3.01]
[1752980112580,3.04,177.54,177.53,3.01]
[1752980116074,3.04,177.55,177.54,3.01]
[1752980116278,10.54481486,177.58,177.54,3.01]
[1752980116480,4.91641486,177.58,177.55,3.01]
[1752980117488,1.87641486,177.58,177.55,3.01]
[1752980118076,3.04,177.57,177.51,3.01]
[1752980118382,3.04,177.55,177.51,3.01]
[1752980118579,3.04,177.53,177.52,3.01]
[1752980119385,3.04,177.55,177.52,3.01]
[1752980119688,3.04,177.54,177.53,3.01]
[1752980120585,8.6695,177.54,177.51,5.6302]
[1752980120887,3.11,177.53,177.51,3.28]
[1752980121089,3.11,177.52,177.51,3.28]
[1752980121287,3.11,177.52,177.51,8.9104]
[1752980121683,7.50591486,177.54,177.51,3.28]
[1752980121684,1.87641486,177.54,177.51,3.28]
[1752980121889,1.87641486,177.54,177.51,8.9103]
[1752980122091,4.98641486,177.54,177.53,3.28]
[1752980123490,1.87641486,177.54,177.53,3.28]
[1752980124091,1.87641486,177.54,177.53,8.9097]
[1752980124991,4.98641486,177.56,177.53,8.9097]
[1752980125295,1.87641486,177.56,177.55,3.28]
[1752980126992,8.7385,177.57,177.55,3.28]
[1752980127197,3.11,177.57,177.55,3.28]
[1752980127695,3.11,177.57,177.56,3.28]
[1752980128595,3.11,177.57,177.53,3.28]
[1752980128896,3.11,177.54,177.53,3.28]
[1752980129996,3.11,177.55,177.53,5.6298]
[1752980130295,3.11,177.55,177.54,3.28]
[1752980131796,7.50541486,177.56,177.54,3.28]
[1752980132097,5.6291,177.55,177.54,3.28]
[1752980132292,8.7391,177.55,177.54,3.28]
[1752980132897,3.11,177.55,177.51,5.6303]
[1752980133098,3.11,177.53,177.52,3.28]
[1752980133493,3.11,177.53,177.5,106.58]
[1752980133494,5.6301,177.52,177.5,106.58]
[1752980133798,3.11,177.52,177.51,3.28]
[1752980134295,8.7401,177.52,177.51,3.28]
[1752980134500,3.11,177.52,177.51,3.28]
[1752980136002,4.98641486,177.52,177.51,3.28]
[1752980136801,10.61651486,177.52,177.51,3.28]
[1752980136999,4.98641486,177.52,177.51,3.28]
[1752980138103,5.63,177.53,177.51,3.28]
[1752980139104,8.74,177.53,177.51,3.28]
[1752980139504,8.74,177.53,177.52,3.28]
[1752980141606,3.11,177.53,177.52,3.28]
[1752980142107,5.6296,177.54,177.52,5.63]
[1752980142409,1.87641486,177.55,177.54,3.28]
[1752980142605,4.98641486,177.57,177.54,3.28]
[1752980142809,4.98641486,177.59,177.54,3.28]
[1752980143206,4.98641486,177.59,177.56,5.6286]
[1752980143504,1.87641486,177.59,177.57,3.28]
[1752980143708,10.61381486,177.61,177.57,3.28]
[1752980143904,1.87641486,177.61,177.57,3.28]
[1752980144612,5.627,177.62,177.58,5.6279]
[1752980144915,3.11,177.63,177.56,7.99937066]
[1752980145112,8.7366,177.63,177.59,5.6276]
[1752980145312,3.11,177.63,177.6,3.28]
[1752980145612,8.7364,177.64,177.6,3.28]
[1752980146512,3.11,177.63,177.6,3.28]
[1752980146908,1.87641486,177.65,177.61,3.28]
[1752980147113,4.98641486,177.69,177.61,3.28]
[1752980147409,4.98641486,177.69,177.64,3.28]
[1752980147410,5.6253,177.67,177.64,3.28]
[1752980147616,7.50171486,177.67,177.64,3.28]
[1752980147817,10.61171486,177.67,177.64,3.28]
[1752980148420,1.87641486,177.67,177.63,3.28]
[1752980148621,1.87641486,177.65,177.63,3.28]
[1752980148814,4.98641486,177.65,177.64,3.28]
[1752980149013,10.61241486,177.65,177.64,3.28]
[1752980150024,4.98641486,177.65,177.64,3.28]
[1752980150324,1.87641486,177.65,177.64,3.28]
[1752980152927,5.12641486,177.67,177.64,3.28]
[1752980153224,5.6251,177.68,177.64,3.28]
[1752980153523,8.8751,177.68,177.64,3.28]
[1752980154024,8.8747,177.69,177.65,3.16]
[1752980154214,3.25,177.69,177.65,3.16]
[1752980154413,3.25,177.68,177.65,3.16]
[1752980156025,5.6247,177.69,177.65,3.16]
[1752980156226,8.8747,177.69,177.65,3.16]
[1752980156726,3.25,177.69,177.66,3.16]
[1752980157322,1.87641486,177.7,177.66,3.16]
[1752980157530,5.12641486,177.7,177.66,3.16]
[1752980158631,5.12641486,177.7,177.67,3.16]
[1752980158930,5.12641486,177.72,177.67,3.16]
[1752980159321,5.12641486,177.72,177.68,5.6248]
[1752980159524,112.10658873,177.73,177.69,3.16]
[1752980159720,115.35658873,177.73,177.69,3.16]
[1752980160135,120.98008873,177.73,177.69,3.16]
[1752980160433,8.8735,177.73,177.69,3.16]
[1752980161134,3.25,177.73,177.69,3.16]
[1752980161329,3.25,177.73,177.69,5.6246]
[1752980161531,3.25,177.73,177.7,3.16]
[1752980161724,5.12641486,177.76,177.71,5.624]
[1752980161927,5.12641486,177.76,177.72,3.16]
[1752980162131,5.6232,177.74,177.72,3.16]
[1752980162432,1.87641486,177.76,177.7,3.16]
[1752980162433,3.25,177.73,177.7,3.16]
[1752980163033,3.25,177.73,177.69,3.16]
[1752980163230,1.87641486,177.72,177.66,3.16]
[1752980163432,3.25,177.71,177.66,3.16]
[1752980163635,5.12641486,177.7,177.63,3.16]
[1752980164040,5.12641486,177.7,177.65,5.6259]
[1752980164339,5.12641486,177.7,177.66,3.16]
[1752980164527,5.12641486,177.7,177.66,8.7854]
[1752980164732,5.12641486,177.7,177.63,3.16]
[1752980164933,1.87641486,177.7,177.63,3.16]
[1752980165533,3.25,177.69,177.67,3.16]
[1752980165737,7.50081486,177.7,177.67,3.16]
[1752980165738,3.25,177.68,177.67,3.16]
[1752980167037,10.75091486,177.7,177.67,3.16]
[1752980167243,3.25,177.69,177.65,3.16]
[1752980167436,3.25,177.68,177.65,3.16]
[1752980169040,5.12641486,177.66,177.6,3.16]
[1752980169441,5.12641486,177.66,177.61,5.6272]
[1752980169634,3.25,177.65,177.62,3.16]
[1752980170742,3.25,177.65,177.62,8.7869]
[1752980170942,3.25,177.65,177.63,3.16]
[1752980171143,1.87641486,177.66,177.63,3.16]
[1752980171442,5.12641486,177.66,177.63,3.16]
[1752980171835,5.12641486,177.66,177.64,3.16]
[1752980172138,5.12641486,177.66,177.65,3.16]
[1752980175042,5.12641486,177.68,177.65,3.16]
[1752980176046,3.25,177.74,177.67,3.16]
[1752980176245,5.12641486,177.69,177.67,3.16]
[1752980176747,5.12641486,177.69,177.68,3.16]
[1752980178939,5.12641486,177.69,177.59,154.08638826]
[1752980178940,3.25,177.67,177.66,3.16]
[1752980179143,3.25,177.67,177.64,5.6261]
[1752980179348,1.87641486,177.69,177.65,3.16]
[1752980179349,3.25,177.66,177.65,3.16]
[1752980179547,3.25,177.66,177.63,8.7866]
[1752980179846,1.87641486,177.65,177.63,8.7866]
[1752980180046,1.87641486,177.65,177.63,3.16]
[1752980180047,3.25,177.64,177.63,3.16]
[1752980181047,1.87641486,177.65,177.63,8.7866]
[1752980181239,5.17641486,177.65,177.64,3.18]
[1752980181846,1.87641486,177.67,177.64,5.6263]
[1752980182046,5.17641486,177.67,177.64,5.6263]
[1752980182246,1.87641486,177.67,177.64,5.6263]
[1752980182546,3.3,177.66,177.65,3.18]
[1752980182747,1.87641486,177.67,177.65,3.18]
[1752980183657,5.17641486,177.67,177.65,3.18]
[1752980184751,5.17641486,177.67,177.66,3.18]
[1752980185251,1.87641486,177.67,177.66,3.18]
[1752980185451,5.17641486,177.69,177.66,3.18]
[1752980185949,3.3,177.68,177.66,3.18]
[1752980186742,3.3,177.67,177.66,3.18]
[1752980189557,3.3,177.66,177.61,3.18]
[1752980189754,1.87641486,177.67,177.61,3.18]
[1752980189755,3.3,177.64,177.61,3.18]
[1752980189951,3.3,177.63,177.61,3.18]
[1752980190152,3.3,177.63,177.61,5.6272]
[1752980190354,3.3,177.63,177.62,3.18]
[1752980190556,1.87641486,177.65,177.62,3.18]
[1752980190557,5.17641486,177.65,177.62,3.18]
[1752980190855,3.3,177.64,177.62,3.18]
[1752980191051,3.3,177.64,177.59,154.08638826]
[1752980191357,1.87641486,177.65,177.6,3.18]
[1752980191556,3.3,177.63,177.6,3.18]
[1752980191756,3.3,177.63,177.61,5.627]
[1752980192055,3.3,177.63,177.62,3.18]
[1752980193751,3.3,177.63,177.59,159.71398826]
[1752980193952,3.3,177.63,177.6,3.18]
[1752980193953,1.87641486,177.63,177.6,3.18]
[1752980194153,3.3,177.62,177.6,3.18]
[1752980194355,3.3,177.62,177.61,3.18]
[1752980195049,3.3,177.62,177.59,3.18]
[1752980195250,1.87641486,177.61,177.59,3.18]
[1752980195556,3.3,177.6,177.59,3.18]
[1752980196347,1.87641486,177.61,177.59,3.18]
[1752980196551,1.87641486,177.61,177.56,103.1]
[1752980196552,5.17641486,177.61,177.6,3.18]
[1752980202561,3.3,177.6,177.57,3.18]
[1752980202766,1.87641486,177.59,177.57,3.18]
[1752980203070,3.3,177.58,177.57,3.18]
[1752980203859,1.87641486,177.59,177.57,3.18]
[1752980204060,5.17641486,177.59,177.57,3.18]
[1752980204967,5.17641486,177.59,177.58,8.8082]
[1752980208171,5.17641486,177.61,177.6,3.18]
[1752980209471,1.87641486,177.61,177.6,8.8075]
[1752980209671,3.3,177.69,177.61,3.18]
[1752980209870,5.17641486,177.65,177.61,3.18]
[1752980210072,1.87641486,177.67,177.64,5.6263]
[1752980210272,3.3,177.66,177.65,3.18]
[1752980210470,1.87641486,177.67,177.65,3.18]
[1752980210771,1.87641486,177.67,177.66,3.18]
[1752980211571,5.17641486,177.67,177.66,3.18]
[1752980212381,3.3,177.66,177.64,8.8062]
[1752980212772,3.3,177.66,177.65,3.18]
[1752980213282,5.17641486,177.68,177.65,3.18]
[1752980213476,3.3,177.67,177.65,3.18]
[1752980213780,1.87641486,177.68,177.65,3.18]
[1752980213981,5.17641486,177.68,177.65,3.18]
[1752980214373,5.17641486,177.68,177.65,8.8058]
[1752980214682,5.17641486,177.68,177.65,5.6258]
[1752980214883,5.17641486,177.68,177.67,3.18]
[1752980216781,10.80141486,177.68,177.67,3.18]
[1752980218177,10.80141486,177.68,177.65,5.6258]
[1752980218379,3.3,177.67,177.66,3.18]
[1752980218682,1.87641486,177.69,177.62,3.18]
[1752980219378,5.17641486,177.69,177.62,3.18]
[1752980219684,5.17641486,177.69,177.66,5.6255]
[1752980219878,5.17641486,177.69,177.67,3.18]
[1752980220684,5.17641486,177.69,177.67,5.6253]
[1752980220982,5.17641486,177.69,177.68,3.18]
[1752980222682,3.3,177.68,177.62,3.18]
[1752980222883,3.3,177.66,177.62,3.18]
[1752980223284,3.3,177.66,177.63,5.6265]
[1752980223481,3.3,177.64,177.63,5.6265]
[1752980223681,3.3,177.64,177.63,8.8065]
[1752980225890,5.17641486,177.65,177.64,3.18]
[1752980226590,5.17641486,177.65,177.64,8.8063]
[1752980228587,3.3,177.68,177.59,3.18]
[1752980228890,3.3,177.7,177.63,3.18]
[1752980229293,1.87641486,177.69,177.63,3.18]
[1752980229493,5.17641486,177.69,177.63,3.18]
[1752980229991,3.3,177.68,177.67,3.18]
[1752980230289,1.87641486,177.69,177.67,3.18]
[1752980230494,5.17641486,177.69,177.68,3.18]
[1752980233192,10.80111486,177.69,177.68,3.18]
[1752980233691,3.3,177.68,177.66,5.6255]
[1752980233895,3.3,177.68,177.67,3.18]
[1752980234795,3.3,177.68,177.67,8.8053]
[1752980235499,5.17641486,177.69,177.67,5.6253]
[1752980235699,5.17641486,177.69,177.68,3.18]
[1752980235999,1.87641486,177.69,177.68,3.18]
[1752980236199,1.87641486,177.69,177.68,8.805]
[1752980238098,5.17641486,177.69,177.68,8.805]
[1752980239198,5.17641486,177.69,177.68,3.18]
[1752980239498,1.87641486,177.69,177.68,3.18]
[1752980239694,1.87641486,177.69,177.68,8.805]
[1752980239899,5.17641486,177.69,177.68,8.805]
[1752980240598,3.01,177.69,177.68,3.18]
[1752980241897,1.87641486,177.7,177.68,3.18]
[1752980242094,1.87641486,177.72,177.7,5.6242]
[1752980242296,1.87641486,177.72,177.71,3.1]
[1752980243603,4.88641486,177.72,177.71,3.1]
[1752980243805,10.51011486,177.72,177.71,3.1]
[1752980245204,4.88641486,177.72,177.71,3.1]
[1752980247801,3.01,177.71,177.63,3.1]
[1752980248106,3.01,177.66,177.63,3.1]
[1752980248309,3.01,177.66,177.64,5.6263]
[1752980248499,3.01,177.66,177.65,3.1]
[1752980249008,4.88641486,177.66,177.65,3.1]
[1752980249907,1.87641486,177.66,177.63,3.1]
[1752980250108,4.88641486,177.64,177.63,3.1]
[1752980250911,10.51271486,177.64,177.63,3.1]
[1752980251605,10.51271486,177.64,177.6,5.6273]
[1752980251810,1.87641486,177.62,177.59,5.6277]
[1752980252111,4.88641486,177.62,177.54,378.32]
[1752980252314,4.88641486,177.62,177.55,3.1]
[1752980252513,10.51351486,177.62,177.57,5.6284]
[1752980252810,1.87641486,177.66,177.59,3.1]
[1752980252811,1.87641486,177.6,177.59,3.1]
[1752980255307,1.87641486,177.6,177.55,3.1]
[1752980255511,4.88641486,177.58,177.55,3.1]
[1752980255708,1.87641486,177.58,177.53,102.9]
[1752980255907,3.01,177.55,177.54,3.1]
[1752980256113,4.88641486,177.55,177.54,3.1]
[1752980257310,1.87641486,177.55,177.54,3.1]
[1752980259411,4.88641486,177.55,177.54,3.1]
[1752980259918,1.87641486,177.56,177.54,3.1]
[1752980260909,3.01,177.55,177.54,3.1]
[1752980263312,4.88641486,177.56,177.54,3.1]
[1752980263813,4.88641486,177.56,177.55,3.1]
[1752980265916,378.32,177.68,177.55,3.1]
[1752980266116,1.87641486,177.6,177.56,5.6285]
[1752980266417,1.87641486,177.6,177.57,3.1]
[1752980267713,1.87641486,177.6,177.57,5.6285]
[1752980267910,1.87641486,177.6,177.58,3.1]
[1752980268313,1.87641486,177.6,177.59,3.1]
[1752980269521,1.87641486,177.62,177.6,3.1]
[1752980271623,1.87641486,177.64,177.61,3.13]
[1752980271824,1.87641486,177.66,177.61,3.13]
[1752980272426,1.87641486,177.66,177.64,3.13]
[1752980274924,1.01,177.65,177.57,3.13]
[1752980275123,1.87641486,177.64,177.57,3.13]
[1752980275925,1.87641486,177.64,177.61,5.627]
[1752980276124,1.87641486,177.64,177.62,3.13]
[1752980276331,7.50211486,177.66,177.62,3.13]
[1752980276522,1.87641486,177.66,177.63,3.13]
[1752980277326,7.50211486,177.66,177.63,3.13]
[1752980277527,1.87641486,177.66,177.64,3.13]
[1752980278928,7.50201486,177.66,177.64,3.13]
[1752980280329,6.6359,177.65,177.64,3.13]
[1752980280625,1.01,177.65,177.57,3.13]
[1752980280928,8.51291486,177.64,177.61,3.13]
[1752980282129,5.6266,177.63,177.61,3.13]
[1752980282725,1.87641486,177.62,177.59,3.13]
[1752980283029,2.88641486,177.62,177.59,3.13]
[1752980283330,7.50351486,177.62,177.59,3.13]
[1752980283520,1.87641486,177.62,177.59,3.13]
[1752980283726,7.50341486,177.62,177.6,3.13]
[1752980284029,7.50341486,177.62,177.59,3.13]
[1752980284529,1.87641486,177.62,177.6,3.13]
[1752980284722,5.6267,177.63,177.6,3.13]
[1752980285833,5.6267,177.63,177.6,8.7574]
[1752980286131,1.87641486,177.64,177.61,3.13]
[1752980286431,1.87641486,177.67,177.63,5.6264]
[1752980286628,5.6257,177.66,177.64,3.13]
[1752980288329,5.6261,177.65,177.63,3.13]
[1752980288933,5.6257,177.66,177.63,8.7565]
[1752980289133,5.6257,177.66,177.64,3.13]
[1752980289931,7.50181486,177.67,177.64,3.13]
[1752980290828,5.6257,177.66,177.64,3.13]
[1752980291226,5.6262,177.65,177.63,3.13]
[1752980291425,1.01,177.64,177.63,3.13]
[1752980291836,6.6365,177.64,177.63,3.13]
[1752980294437,1.01,177.64,177.57,128.69589543]
[1752980294637,2.88641486,177.63,177.58,3.13]
[1752980295137,5.6271,177.62,177.6,3.13]
[1752980298337,5.6272,177.61,177.6,3.13]
[1752980299942,8.51361486,177.61,177.6,3.13]
[1752980301236,7.50361486,177.61,177.6,3.13]
[1752980303337,8.51361486,177.61,177.6,3.13]
[1752980303538,5.6282,177.58,177.52,102.9]
[1752980303740,7.50461486,177.58,177.52,102.9]
[1752980304042,7.50461486,177.58,177.55,3.31]
[1752980304443,5.6286,177.57,177.55,3.31]
[1752980306243,1.87641486,177.58,177.55,3.31]
[1752980306946,7.50461486,177.58,177.55,3.31]
[1752980307345,1.87641486,177.58,177.55,3.31]
[1752980307545,5.6287,177.57,177.55,3.31]
[1752980307941,1.01,177.57,177.56,3.31]
[1752980308143,8.51491486,177.57,177.56,3.31]
[1752980308542,7.50491486,177.57,177.56,3.31]
[1752980308943,2.88641486,177.57,177.52,3.31]
[1752980309148,1.87641486,177.55,177.52,3.31]
[1752980309546,7.50581486,177.55,177.52,3.31]
[1752980309748,1.87641486,177.55,177.52,3.31]
[1752980309945,5.6297,177.54,177.52,3.31]
[1752980310642,6.6397,177.54,177.53,3.31]
[1752980310940,7.50561486,177.55,177.53,3.31]
[1752980311348,5.6294,177.54,177.53,3.31]
[1752980312239,7.50561486,177.55,177.53,3.31]
[1752980313853,6.16657885,177.63,177.53,3.31]
[1752980314052,1.87641486,177.57,177.53,3.31]
[1752980314544,1.01,177.61,177.53,3.31]
[1752980314847,1.87641486,177.57,177.53,3.31]
[1752980315639,5.628,177.59,177.54,5.6294]
[1752980315842,1.87641486,177.59,177.55,3.31]
[1752980316445,1.87641486,177.59,177.56,3.31]
[1752980317850,7.50431486,177.59,177.56,3.31]
[1752980319048,1.87641486,177.57,177.51,3.31]
[1752980319853,7.50501486,177.57,177.53,5.6297]
[1752980320053,7.50501486,177.57,177.54,3.31]
[1752980320357,1.87641486,177.57,177.54,3.31]
[1752980321954,1.87641486,177.57,177.55,3.31]
[1752980322952,1.87641486,177.57,177.55,8.9391]
[1752980323151,1.87641486,177.57,177.56,3.31]